bitfinex/quotes_ETHUSD_20230105
["timestamp","ask_amount","ask_price","bid_price","bid_amount"]
[1672944439651,2.99716563,1251.4,1251.3,9.48620331]
[1672944442013,11.65123076,1251.5,1251.3,9.48620331]
[1672944442225,11.65123076,1251.5,1251.3,1.49452331]
[1672944442226,27.56689076,1251.5,1251.3,1.49452331]
[1672944442486,27.56689076,1251.5,1251.3,1.39552331]
[1672944442802,0.05,1251.4,1251.3,1.39552331]
[1672944443014,27.56689076,1251.5,1251.3,1.39552331]
[1672944443259,31.09477387,1251.5,1251.3,1.39552331]
[1672944443740,2.99689261,1251.4,1251.3,9.38708331]
[1672944443935,2.99689261,1251.4,1251.3,17.47776331]
[1672944444363,2.99689261,1251.4,1251.3,9.48608331]
[1672944447677,2.99689261,1251.4,1251.3,17.47776331]
[1672944449149,2.99689261,1251.4,1251.3,9.48608331]
[1672944449680,2.99689261,1251.4,1251.3,25.46944331]
[1672944450134,2.99689261,1251.4,1251.3,27.17380777]
[1672944450361,2.99889261,1251.4,1251.3,27.17080777]
[1672944450719,2.99689261,1251.4,1251.3,27.17380777]
[1672944454686,2.99689261,1251.4,1251.3,19.18212777]
[1672944454989,2.99689261,1251.4,1251.3,9.48608331]
[1672944457843,2.99689261,1251.4,1251.3,17.47776331]
[1672944463422,3.66067076,1251.5,1251.3,17.47776331]
[1672944463614,2.9972037,1251.4,1251.3,17.47776331]
[1672944463800,2.9972037,1251.4,1251.3,33.46112331]
[1672944464010,2.9972037,1251.4,1251.3,25.46944331]
[1672944464434,2.9972037,1251.4,1251.3,25.4660649]
[1672944475196,2.9972037,1251.4,1251.3,33.93630415]
[1672944475430,2.9972037,1251.4,1251.3,40.21374512]
[1672944475650,3.0632037,1251.5,1251.3,40.21374512]
[1672944475832,2.9972037,1251.5,1251.3,40.21374512]
[1672944476227,2.9972037,1251.5,1251.3,36.8370126]
[1672944476437,3.0632037,1251.6,1251.3,44.8286926]
[1672944476672,2.9992037,1251.6,1251.3,44.8256926]
[1672944476849,2.9992037,1251.6,1251.3,44.8286926]
[1672944476850,2.9972037,1251.6,1251.3,44.8286926]
[1672944478839,2.9972037,1251.6,1251.3,40.21374512]
[1672944479322,2.9972037,1251.6,1251.3,44.8286926]
[1672944479475,2.9972037,1251.5,1251.3,17.95294415]
[1672944480843,0.066,1251.6,1251.4,3.98914951]
[1672944481082,3.59467076,1251.8,1251.5,29.15059676]
[1672944481287,3.82674789,1251.9,1251.5,38.876896]
[1672944481653,3.76074789,1251.9,1251.7,7.98913]
[1672944481823,3.76074789,1251.9,1251.7,8.08813]
[1672944482035,7.26074789,1251.9,1251.7,8.08813]
[1672944482230,3.76074789,1251.9,1251.7,8.08813]
[1672944482655,3.76074789,1251.9,1251.7,16.07726]
[1672944482916,12.92620705,1252.0,1251.7,19.45409118]
[1672944483127,4.22330705,1252.0,1251.7,36.05419825]
[1672944483341,0.62863629,1252.0,1251.7,36.05419825]
[1672944486770,0.62863629,1252.0,1251.7,31.43237069]
[1672944486994,0.62863629,1252.0,1251.7,36.05419825]
[1672944488007,0.62863629,1252.0,1251.7,44.04332825]
[1672944492143,0.62863629,1252.0,1251.7,39.42150069]
[1672944492578,0.62863629,1252.0,1251.7,44.04332825]
[1672944492770,0.62863629,1252.0,1251.7,39.42150069]
[1672944492983,0.62863629,1252.0,1251.7,44.04332825]
[1672944494412,0.62863629,1252.0,1251.7,39.42150069]
[1672944495215,0.62863629,1252.0,1251.8,3.98914951]
[1672944495461,0.62863629,1252.0,1251.9,31.9514]
[1672944495630,0.57863629,1252.0,1251.9,32.52895925]
[1672944498054,0.57863629,1252.0,1251.9,36.51810876]
[1672944500338,0.57863629,1252.0,1251.9,41.13993632]
[1672944500587,0.57863629,1252.0,1251.9,49.84911324]
[1672944501567,0.22879437,1252.1,1252.0,1.79755925]
[1672944501716,0.22879437,1252.1,1252.0,48.83916524]
[1672944501926,0.22879437,1252.1,1252.0,48.93816524]
[1672944502137,0.22879437,1252.1,1252.0,55.20168446]
[1672944502399,0.22879437,1252.1,1252.0,51.70168446]
[1672944503824,0.22879437,1252.1,1252.0,47.32810798]
[1672944504043,0.22879437,1252.1,1252.0,51.70168446]
[1672944504269,0.22879437,1252.1,1252.0,47.09810798]
[1672944507852,0.22879437,1252.1,1252.0,47.09510798]
[1672944508065,0.22879437,1252.1,1252.0,47.04810798]
[1672944510387,0.22879437,1252.1,1252.0,46.99810798]
[1672944510606,0.22879437,1252.1,1252.0,51.60168446]
[1672944510773,0.22879437,1252.1,1252.0,46.99810798]
[1672944513669,0.23079437,1252.1,1252.0,46.99510798]
[1672944513806,0.22879437,1252.1,1252.0,46.99810798]
[1672944515231,0.22879437,1252.1,1252.0,43.00895847]
[1672944515398,0.22879437,1252.1,1252.0,3.099]
[1672944515606,1.54779437,1252.1,1251.9,8.08642]
[1672944515845,9.53437437,1252.1,1251.9,0.099]
[1672944516053,0.22879437,1252.1,1251.9,15.9757]
[1672944516231,0.22879437,1252.1,1251.9,24.06255]
[1672944517710,0.22879437,1252.1,1251.9,30.63585144]
[1672944518940,0.22879437,1252.1,1251.9,38.62370144]
[1672944523444,3.21333634,1252.1,1251.9,38.62370144]
[1672944523863,0.22879437,1252.1,1251.9,38.62370144]
[1672944525188,3.21333634,1252.1,1251.9,38.62370144]
[1672944527424,3.21333634,1252.1,1251.9,30.63585144]
[1672944528254,3.21333634,1252.1,1251.9,10.67100193]
[1672944528471,19.18666634,1252.1,1251.9,0.099]
[1672944528841,19.18666634,1252.1,1251.9,3.0]
[1672944529038,11.20005634,1252.1,1251.9,10.9878]
[1672944529192,11.20005634,1252.1,1251.9,11.0868]
[1672944529397,2.98454197,1252.0,1251.9,11.0868]
[1672944530303,2.98454197,1252.0,1251.9,3.099]
[1672944530625,2.98454197,1252.0,1251.9,3.0]
[1672944530810,2.98454197,1252.0,1251.8,35.61087]
[1672944531142,2.98454197,1252.0,1251.8,19.63454]
[1672944531143,10.97180197,1252.0,1251.8,19.63454]
[1672944531500,2.98454197,1252.0,1251.8,35.61152]
[1672944531760,2.98454197,1252.0,1251.8,50.176056]
[1672944534762,2.98454197,1252.0,1251.8,50.17280694]
[1672944535977,3.27933634,1252.1,1251.8,50.17280694]
[1672944536146,3.21333634,1252.1,1251.8,50.17280694]
[1672944536570,2.98454197,1252.0,1251.8,50.17280694]
[1672944537880,3.27933634,1252.1,1251.8,50.17280694]
[1672944538062,3.21333634,1252.1,1251.8,54.77638342]
[1672944541109,3.21333634,1252.1,1251.8,58.76553293]
[1672944541281,3.21333634,1252.1,1251.8,59.24284519]
[1672944541711,0.22879437,1252.1,1251.8,59.24284519]
[1672944542775,3.21333634,1252.1,1251.8,59.24284519]
[1672944543446,3.21333634,1252.1,1251.8,54.63926871]
[1672944543604,3.21333634,1252.1,1251.8,59.24284519]
[1672944547126,3.21333634,1252.1,1251.8,54.63926871]
[1672944548248,3.21333634,1252.1,1251.8,59.24284519]
[1672944552047,3.21333634,1252.1,1251.9,17.98914951]
[1672944552235,0.22879437,1252.1,1252.0,35.93802951]
[1672944552589,0.22879437,1252.1,1252.0,36.51434177]
[1672944552854,0.22879437,1252.1,1252.0,39.51434177]
[1672944554353,1e-08,1252.1,1252.0,39.51434177]
[1672944554558,1e-08,1252.1,1252.0,44.64003602]
[1672944557915,1e-08,1252.1,1252.0,49.2436125]
[1672944558128,1e-08,1252.1,1252.0,44.64003602]
[1672944559496,1e-08,1252.1,1252.0,44.41003602]
[1672944562233,1e-08,1252.1,1252.0,56.66713602]
[1672944563073,1e-08,1252.1,1252.0,61.2707125]
[1672944563285,1e-08,1252.1,1252.0,56.66713602]
[1672944563702,1e-08,1252.1,1252.0,61.2707125]
[1672944563952,1e-08,1252.1,1252.0,56.66713602]
[1672944564821,1e-08,1252.1,1252.0,58.31941381]
[1672944566042,1e-08,1252.1,1252.0,50.33219381]
[1672944566670,1e-08,1252.1,1252.0,58.31941381]
[1672944566870,1e-08,1252.1,1252.0,50.33219381]
[1672944567503,1e-08,1252.1,1252.0,58.31941381]
[1672944570022,1e-08,1252.1,1252.0,46.06231381]
[1672944573706,1e-08,1252.1,1252.0,14.11343381]
[1672944573914,7.98658001,1252.1,1252.0,14.11343381]
[1672944574123,1e-08,1252.1,1252.0,29.19025005]
[1672944576701,1e-08,1252.1,1252.0,45.77019604]
[1672944577646,1e-08,1252.1,1252.0,41.16661956]
[1672944577854,1e-08,1252.1,1252.0,49.1374897]
[1672944579867,0.24723603,1252.2,1252.1,2.08987347]
[1672944580082,0.24723603,1252.2,1252.1,38.50265524]
[1672944580245,0.24723603,1252.2,1252.1,41.59836167]
[1672944580672,0.24723603,1252.2,1252.1,33.61178167]
[1672944582134,0.24723603,1252.2,1252.1,41.59836167]
[1672944582358,0.24723603,1252.2,1252.1,33.61178167]
[1672944582778,0.24723603,1252.2,1252.1,41.59836167]
[1672944583346,0.24723603,1252.2,1252.1,42.95405475]
[1672944584086,0.24723603,1252.2,1252.1,34.96747475]
[1672944584897,0.24723603,1252.2,1252.1,33.61178167]
[1672944585948,0.24723603,1252.2,1252.1,33.13446941]
[1672944586703,0.24723603,1252.2,1252.1,27.0593199]
[1672944587951,3.231778,1252.2,1252.1,27.0593199]
[1672944590963,3.231778,1252.2,1252.1,11.0861599]
[1672944591168,4.74467422,1252.2,1252.1,8.0861599]
[1672944591384,5.35480301,1252.2,1252.1,8.0861599]
[1672944591636,5.95410301,1252.2,1252.1,8.0861599]
[1672944592174,5.95410301,1252.2,1252.1,0.0995799]
[1672944592363,5.95410301,1252.2,1252.1,0.00387347]
[1672944592556,9.45410301,1252.2,1252.1,0.00387347]
[1672944593900,5.95410301,1252.2,1252.1,7.99045347]
[1672944594254,5.95410301,1252.2,1252.1,24.0593199]
[1672944594470,4.44120679,1252.2,1252.1,24.0593199]
[1672944596029,0.84653603,1252.2,1252.1,24.0593199]
[1672944596575,4.44120679,1252.2,1252.1,16.0727399]
[1672944596802,0.89653603,1252.2,1252.1,16.0727399]
[1672944596973,0.84653603,1252.2,1252.1,16.0727399]
[1672944598882,3.24019463,1252.2,1252.1,16.0727399]
[1672944600228,3.84190679,1252.2,1252.1,16.0727399]
[1672944600648,3.24016579,1252.2,1252.1,16.0727399]
[1672944601018,3.24016579,1252.2,1252.1,24.0593199]
[1672944601735,3.24016579,1252.2,1252.1,24.05582226]
[1672944601929,3.24016579,1252.2,1252.1,32.04240226]
[1672944603614,3.24016579,1252.2,1252.1,24.05582226]
[1672944605426,0.24723603,1252.2,1252.1,8.08266226]
[1672944605792,0.24723603,1252.2,1252.1,16.06924226]
[1672944606046,3.24016005,1252.2,1252.1,16.06924226]
[1672944606461,3.84190679,1252.2,1252.1,16.06924226]
[1672944606991,0.24723603,1252.2,1252.1,16.06924226]
[1672944607330,5.16090679,1252.2,1252.1,0.09608226]
[1672944607497,5.16090679,1252.2,1252.0,1.74798422]
[1672944607498,3.5,1252.1,1252.0,1.74798422]
[1672944607697,39.85344688,1252.1,1252.0,1.65227779]
[1672944607903,49.58753325,1252.1,1252.0,1.65227779]
[1672944608341,33.61437325,1252.1,1252.0,1.65227779]
[1672944608649,16.83348637,1252.1,1252.0,1.65227779]
[1672944609319,20.42528419,1252.1,1252.0,1.65227779]
[1672944609536,16.92528419,1252.1,1252.0,1.65227779]
[1672944609858,13.92528419,1252.1,1252.0,1.65227779]
[1672944611677,13.32402488,1252.1,1252.0,1.65227779]
[1672944611886,13.32402488,1252.1,1252.0,9.63949779]
[1672944611887,8.58993851,1252.1,1252.0,9.63949779]
[1672944612098,8.58993851,1252.1,1252.0,9.73520422]
[1672944612315,3.58993851,1252.1,1252.0,9.73520422]
[1672944613663,3.58993851,1252.1,1252.0,1.74798422]
[1672944613842,13.4988924,1252.1,1252.0,1.65227779]
[1672944614050,4.91087422,1252.1,1252.0,1.65227779]
[1672944614259,4.91087422,1252.1,1252.0,9.63949779]
[1672944614474,4.91087422,1252.1,1252.0,9.73520422]
[1672944614715,1.92051458,1252.1,1252.0,9.73520422]
[1672944615348,4.9107259,1252.1,1252.0,9.73520422]
[1672944616823,4.9107259,1252.1,1252.0,17.72242422]
[1672944617036,4.3113259,1252.1,1252.0,25.70964422]
[1672944618774,2.99021132,1252.1,1252.0,25.70964422]
[1672944619822,5.51962076,1252.2,1252.0,25.70964422]
[1672944620059,5.45362076,1252.2,1252.0,33.69686422]
[1672944620357,3.23744735,1252.2,1252.0,33.69686422]
[1672944621174,3.23744735,1252.2,1252.0,25.70964422]
[1672944623912,2.99021132,1252.1,1252.0,25.70964422]
[1672944624118,2.99021132,1252.1,1252.0,30.06764887]
[1672944632344,2.99021132,1252.1,1252.0,30.06492676]
[1672944643579,2.99021132,1252.1,1252.0,22.07770676]
[1672944643750,2.99021132,1252.1,1252.0,17.71970211]
[1672944653982,2.99021132,1252.1,1252.0,17.71710312]
[1672944656496,2.99021132,1252.1,1252.0,9.72988312]
[1672944656708,2.99021132,1252.1,1252.0,17.71710312]
[1672944657175,3.90503385,1252.2,1252.0,17.71710312]
[1672944657365,8.09154762,1252.2,1252.0,17.71710312]
[1672944658964,2.99658699,1252.1,1252.0,17.71710312]
[1672944663063,3.30982302,1252.2,1252.0,25.70432312]
[1672944663277,3.24382302,1252.2,1252.0,33.69154312]
[1672944666476,3.24382302,1252.2,1252.1,11.97572951]
[1672944666739,3.24382302,1252.2,1252.1,4.08485594]
[1672944666927,3.24382302,1252.2,1252.1,11.97572951]
[1672944667113,3.24382302,1252.2,1252.1,4.08485594]
[1672944667323,3.24382302,1252.2,1252.1,3.98914951]
[1672944668006,11.22993302,1252.2,1252.0,18.15174743]
[1672944668172,2.99472217,1252.1,1252.0,37.80283312]
[1672944668831,0.31323603,1252.2,1252.0,37.80283312]
[1672944668832,3.3079582,1252.2,1252.0,37.80283312]
[1672944669044,3.2419582,1252.2,1252.0,37.80283312]
[1672944672747,3.2439582,1252.2,1252.0,37.79983312]
[1672944672906,3.2419582,1252.2,1252.0,37.80283312]
[1672944678271,3.2419582,1252.2,1252.0,37.80056577]
[1672944678930,3.2919582,1252.2,1252.0,37.80056577]
[1672944679162,3.2419582,1252.2,1252.0,37.80056577]
[1672944679565,2.99472217,1252.1,1252.0,37.80056577]
[1672944679986,3.3079582,1252.2,1252.0,37.80056577]
[1672944680201,2.99472217,1252.1,1252.0,37.80056577]
[1672944683883,2.99472217,1252.1,1252.0,21.82641577]
[1672944684256,2.99472217,1252.1,1252.0,29.81363577]
[1672944684640,2.99472217,1252.1,1252.0,21.82641577]
[1672944686303,2.99472217,1252.1,1252.0,29.81363577]
[1672944688177,2.99119436,1252.1,1252.0,29.81363577]
[1672944691173,2.99119436,1252.1,1252.0,37.80085577]
[1672944695321,2.99119436,1252.1,1252.0,29.81363577]
[1672944695730,2.99119436,1252.1,1252.0,13.83979577]
[1672944696006,2.99119436,1252.1,1252.0,29.81423577]
[1672944700074,2.99119436,1252.1,1252.0,9.72761577]
[1672944700366,10.97777436,1252.1,1252.0,1.74039577]
[1672944700519,10.97777436,1252.1,1252.0,1.64468934]
[1672944701282,18.96435436,1252.1,1252.0,1.64468934]
[1672944703653,10.97777436,1252.1,1252.0,1.64468934]
[1672944704897,2.99119436,1252.1,1252.0,1.64468934]
[1672944705216,10.97777436,1252.1,1252.0,1.64468934]
[1672944705430,2.99119436,1252.1,1252.0,1.64468934]
[1672944708743,10.97777436,1252.1,1252.0,1.64468934]
[1672944709367,14.66389664,1252.1,1252.0,1.64468934]
[1672944709579,30.63705664,1252.1,1252.0,1.64468934]
[1672944710114,22.65047664,1252.1,1252.0,1.64468934]
[1672944710431,22.65047664,1252.1,1252.0,1.6424778]
[1672944711890,30.63705664,1252.1,1252.0,1.6424778]
[1672944712104,14.66389664,1252.1,1252.0,1.6424778]
[1672944712462,30.63705664,1252.1,1252.0,1.6424778]
[1672944712673,22.65047664,1252.1,1252.0,1.6424778]
[1672944713260,30.63705664,1252.1,1252.0,1.6424778]
[1672944713830,30.63705664,1252.1,1251.8,22.96067583]
[1672944714182,10.98198369,1252.0,1251.8,22.96067583]
[1672944714350,10.98198369,1252.0,1251.8,30.94907583]
[1672944714563,10.98198369,1252.0,1251.8,22.96067583]
[1672944714831,18.96940369,1252.0,1251.8,22.96067583]
[1672944715357,10.98198369,1252.0,1251.8,30.94910583]
[1672944716178,10.98198369,1252.0,1251.8,22.96067583]
[1672944716179,18.96920369,1252.0,1251.8,22.96067583]
[1672944716348,14.35169372,1252.0,1251.8,22.96067583]
[1672944716723,14.35179372,1252.0,1251.8,30.94901583]
[1672944717823,6.36447372,1252.0,1251.8,46.92599583]
[1672944718032,2.99456369,1252.0,1251.8,46.92599583]
[1672944725140,2.99456369,1252.0,1251.8,38.93750583]
[1672944726398,2.99456369,1252.0,1251.8,46.92599583]
[1672944729005,2.99456369,1252.0,1251.8,38.93750583]
[1672944729491,2.99456369,1252.0,1251.8,46.92599583]
[1672944729966,2.99456369,1252.0,1251.8,38.93750583]
[1672944730826,2.99456369,1252.0,1251.8,46.92599583]
[1672944733194,2.99456369,1252.0,1251.8,46.923665]
[1672944734227,2.99456369,1252.0,1251.8,38.935175]
[1672944735913,2.99456369,1252.0,1251.8,46.923665]
[1672944736596,2.99456369,1252.0,1251.8,54.912155]
[1672944736831,3.06056369,1252.1,1251.8,56.98854767]
[1672944736988,2.99456369,1252.1,1251.8,56.98854767]
[1672944745797,2.99456369,1252.1,1251.8,49.00005767]
[1672944748911,2.99456369,1252.0,1251.8,49.00005767]
[1672944753313,2.99232543,1252.0,1251.8,49.00005767]
[1672944755612,2.99232543,1252.0,1251.8,56.98854767]
[1672944755820,2.99232543,1252.0,1251.8,49.00005767]
[1672944757179,23.13165782,1252.1,1251.8,49.00005767]
[1672944757442,7.09179782,1252.0,1251.8,46.923665]
[1672944757754,7.09179782,1252.0,1251.8,22.958345]
[1672944757906,31.05349782,1252.0,1251.8,22.958345]
[1672944758116,39.04075782,1252.0,1251.8,22.958345]
[1672944758378,43.75745698,1252.0,1251.8,22.958345]
[1672944759236,35.77019698,1252.0,1251.8,22.958345]
[1672944760330,2.99397171,1251.9,1251.8,22.958345]
[1672944760568,18.96967171,1251.9,1251.8,22.958345]
[1672944760919,18.96967171,1251.9,1251.8,1.85907583]
[1672944761145,18.96967171,1251.9,1251.8,1.7633694]
[1672944761970,2.99397171,1251.9,1251.8,1.7633694]
[1672944762174,10.98182171,1251.9,1251.8,1.7633694]
[1672944762387,2.99397171,1251.9,1251.8,1.7633694]
[1672944765494,2.99397171,1251.9,1251.8,9.7518594]
[1672944765722,2.99397171,1251.9,1251.8,9.84756583]
[1672944768141,2.99397171,1251.9,1251.8,17.83605583]
[1672944768642,2.99397171,1251.9,1251.8,25.82454583]
[1672944768880,3.05997171,1252.0,1251.8,25.82454583]
[1672944769218,7.46074501,1252.0,1251.8,25.82454583]
[1672944769813,7.46074501,1252.0,1251.8,17.83605583]
[1672944770021,15.44802501,1252.0,1251.8,9.84756583]
[1672944771851,7.46074501,1252.0,1251.8,17.83605583]
[1672944772426,7.46074501,1252.0,1251.8,9.84756583]
[1672944772427,15.44809501,1252.0,1251.8,9.84756583]
[1672944773214,7.46074501,1252.0,1251.8,9.84756583]
[1672944773929,7.46074501,1252.0,1251.8,17.83605583]
[1672944775582,7.46074501,1252.0,1251.8,9.84756583]
[1672944776681,7.46074501,1252.0,1251.8,9.84475954]
[1672944778411,7.46074501,1252.0,1251.8,17.83324954]
[1672944780458,7.46074501,1252.0,1251.8,9.84475954]
[1672944780625,23.43559501,1252.0,1251.8,9.84473954]
[1672944780844,2.99397171,1251.9,1251.8,9.84473954]
[1672944781668,2.99397171,1251.9,1251.8,1.85626954]
[1672944781878,2.99397171,1251.9,1251.8,9.74905311]
[1672944782135,7.52674501,1252.0,1251.8,17.83324954]
[1672944782351,7.46074501,1252.0,1251.8,17.83324954]
[1672944783939,2.99397171,1251.9,1251.8,17.83324954]
[1672944784741,7.52674501,1252.0,1251.8,25.82173954]
[1672944784950,7.46074501,1252.0,1251.8,25.82173954]
[1672944785958,2.99397171,1252.0,1251.8,25.82173954]
[1672944787403,2.99397171,1252.0,1251.8,33.81022954]
[1672944791888,0.05,1251.9,1251.8,33.81022954]
[1672944792096,2.99397171,1252.0,1251.8,33.81022954]
[1672944794356,2.99397171,1252.0,1251.8,25.82173954]
[1672944794575,5.21549366,1252.0,1251.8,25.82173954]
[1672944795206,2.99397171,1251.9,1251.8,25.82173954]
[1672944798245,3.05997171,1252.0,1251.8,25.81913032]
[1672944798434,2.99397171,1252.0,1251.8,25.81913032]
[1672944798629,2.99397171,1252.0,1251.8,33.80762032]
[1672944798834,2.99397171,1252.0,1251.8,25.81913032]
[1672944799051,4.41682866,1252.0,1251.8,25.81913032]
[1672944800771,2.99397171,1251.9,1251.8,25.81913032]
[1672944800977,3.05997171,1252.0,1251.8,25.81913032]
[1672944801164,2.99397171,1252.0,1251.8,25.81913032]
[1672944802647,2.99397171,1252.0,1251.8,33.80762032]
[1672944802985,2.99397171,1252.0,1251.8,25.81913032]
[1672944803709,2.99397171,1252.0,1251.8,33.80762032]
[1672944803862,2.99397171,1252.0,1251.8,25.81913032]
[1672944804078,4.41682866,1252.0,1251.8,25.81913032]
[1672944805880,4.41682866,1252.0,1251.8,33.80762032]
[1672944807495,4.41682866,1252.0,1251.8,25.81913032]
[1672944808648,2.99397171,1251.9,1251.8,25.81913032]
[1672944809595,3.05997171,1252.0,1251.8,25.81913032]
[1672944809747,2.99397171,1252.0,1251.8,25.81913032]
[1672944810820,2.99397171,1252.0,1251.8,33.80762032]
[1672944811024,2.99397171,1252.0,1251.8,25.81913032]
[1672944813355,2.99397171,1252.0,1251.8,33.80762032]
[1672944813950,2.99397171,1252.0,1251.8,25.81913032]
[1672944815520,2.99397171,1252.0,1251.8,33.80762032]
[1672944816004,2.99397171,1252.0,1251.8,25.81913032]
[1672944816378,2.99397171,1252.0,1251.8,26.29644258]
[1672944818106,2.99397171,1252.0,1251.8,34.28493258]
[1672944818573,3.04397171,1252.0,1251.8,34.28493258]
[1672944818791,2.99397171,1252.0,1251.8,26.29278197]
[1672944819367,4.41682866,1252.0,1251.8,26.29278197]
[1672944819723,2.99397171,1251.9,1251.8,26.29278197]
[1672944821091,2.99397171,1251.9,1251.8,18.30429197]
[1672944821342,2.99397171,1251.9,1251.8,2.32731197]
[1672944821568,2.99397171,1251.9,1251.8,2.23160554]
[1672944822693,2.99397171,1251.9,1251.8,10.22009554]
[1672944822950,2.99397171,1251.9,1251.8,10.31580197]
[1672944826469,2.99397171,1251.9,1251.8,18.30429197]
[1672944827348,2.99397171,1251.9,1251.8,26.29278197]
[1672944834917,2.99397171,1251.9,1251.8,26.29607554]
[1672944838173,2.99397171,1251.9,1251.8,18.30758554]
[1672944838350,2.99397171,1251.9,1251.8,18.20858554]
[1672944838564,2.99397171,1251.9,1251.8,18.30758554]
[1672944840483,2.99397171,1251.9,1251.8,18.30448948]
[1672944843436,2.99397171,1251.9,1251.8,26.29297948]
[1672944844339,2.99397171,1251.9,1251.8,10.31599948]
[1672944844542,2.99397171,1251.9,1251.8,2.32750948]
[1672944844756,2.99397171,1251.9,1251.8,1.75119722]
[1672944844757,13.18784747,1251.9,1251.8,1.75119722]
[1672944844968,29.16154747,1251.9,1251.8,1.75119722]
[1672944845179,21.17369747,1251.9,1251.8,1.75119722]
[1672944845422,17.58189965,1251.9,1251.8,1.75119722]
[1672944845631,25.56974965,1251.9,1251.8,1.75119722]
[1672944845856,17.58189965,1251.9,1251.8,1.75119722]
[1672944846182,9.59404965,1251.9,1251.8,1.75119722]
[1672944846820,21.17369747,1251.9,1251.8,1.75119722]
[1672944847026,29.16154747,1251.9,1251.8,1.75119722]
[1672944847175,21.17369747,1251.9,1251.8,1.75119722]
[1672944847390,17.58189965,1251.9,1251.8,1.75119722]
[1672944848070,9.59404965,1251.9,1251.8,1.75119722]
[1672944849751,25.56974965,1251.9,1251.8,1.75119722]
[1672944850181,17.58189965,1251.9,1251.8,1.75119722]
[1672944850677,21.17369747,1251.9,1251.8,1.75119722]
[1672944852995,5.19799747,1251.9,1251.8,1.75119722]
[1672944853198,5.1998118,1251.9,1251.8,9.73968722]
[1672944853408,5.1998118,1251.9,1251.8,1.85019722]
[1672944853649,4.6003118,1251.9,1251.8,9.73968722]
[1672944853960,4.6003118,1251.9,1251.8,9.83868722]
[1672944856959,4.6003118,1251.9,1251.8,1.85019722]
[1672944857242,4.6003118,1251.9,1251.8,1.75119722]
[1672944857424,4.6003118,1251.9,1251.8,9.73968722]
[1672944857741,4.6003118,1251.9,1251.8,9.83868722]
[1672944857934,4.6003118,1251.9,1251.8,17.82717722]
[1672944858882,4.6003118,1251.9,1251.8,9.83868722]
[1672944861632,4.6003118,1251.9,1251.8,9.83592641]
[1672944862430,4.6003118,1251.9,1251.8,9.73692641]
[1672944864736,4.59676509,1251.9,1251.8,9.73692641]
[1672944867108,4.59676509,1251.9,1251.8,9.83592641]
[1672944867295,2.99411215,1251.9,1251.8,1.84743641]
[1672944867506,2.99411215,1251.9,1251.8,9.73692641]
[1672944867767,2.99411215,1251.9,1251.8,9.83592641]
[1672944869879,2.99411215,1251.9,1251.8,25.81290641]
[1672944871604,2.99611215,1251.9,1251.8,25.80990641]
[1672944871815,2.99411215,1251.9,1251.8,25.81290641]
[1672944873007,2.99411215,1251.9,1251.8,9.83592641]
[1672944874755,2.99411215,1251.9,1251.8,1.84743641]
[1672944874967,2.99411215,1251.9,1251.8,1.74843641]
[1672944877926,2.99411215,1251.9,1251.8,9.73692641]
[1672944878139,2.99411215,1251.9,1251.8,9.83592641]
[1672944878347,2.99411215,1251.9,1251.8,1.84743641]
[1672944878563,27.62017782,1252.0,1251.8,1.74843641]
[1672944878773,31.80058864,1252.0,1251.8,1.74843641]
[1672944879120,15.82543864,1252.0,1251.8,9.73677641]
[1672944879310,15.82543864,1252.0,1251.8,9.83577641]
[1672944879523,2.99572726,1251.9,1251.8,9.83577641]
[1672944880134,3.04572726,1251.9,1251.8,9.83577641]
[1672944880327,2.99572726,1251.9,1251.8,9.83577641]
[1672944884064,11.64502782,1252.0,1251.8,9.83577641]
[1672944884233,15.82528364,1252.0,1251.8,9.83577641]
[1672944885157,23.81284364,1252.0,1251.8,9.83577641]
[1672944885368,3.59179782,1251.9,1251.8,1.84443641]
[1672944885655,3.59179782,1251.9,1251.8,1.74843641]
[1672944885852,31.86640364,1252.0,1251.8,1.74843641]
[1672944886170,3.59179782,1251.9,1251.8,1.74843641]
[1672944886317,3.59179782,1251.9,1251.8,1.74520765]
[1672944886527,31.86640364,1252.0,1251.8,1.74520765]
[1672944886799,31.80040364,1252.0,1251.8,1.74520765]
[1672944888491,3.59179782,1251.9,1251.8,1.74520765]
[1672944889793,31.86640364,1252.0,1251.8,1.74520765]
[1672944890005,31.80040364,1252.0,1251.8,1.74520765]
[1672944891103,3.59179782,1251.9,1251.8,1.74520765]
[1672944891314,7.19091122,1251.9,1251.8,1.74520765]
[1672944893146,15.17876122,1251.9,1251.8,1.74520765]
[1672944893357,7.19091122,1251.9,1251.8,1.74520765]
[1672944894629,3.59179782,1251.9,1251.8,1.74520765]
[1672944899405,28.27474582,1252.0,1251.8,9.73369765]
[1672944899406,15.89128364,1252.0,1251.8,9.73369765]
[1672944899616,15.82528364,1252.0,1251.8,9.83269765]
[1672944899831,23.81284364,1252.0,1251.8,1.84420765]
[1672944900042,23.81284364,1252.0,1251.8,1.74520765]
[1672944900251,23.81484364,1252.0,1251.8,1.74520765]
[1672944900462,23.81284364,1252.0,1251.8,1.74520765]
[1672944900675,23.86284364,1252.0,1251.8,1.74520765]
[1672944900899,15.82528364,1252.0,1251.8,9.73356765]
[1672944901108,3.59179782,1251.9,1251.8,9.83256765]
[1672944901318,3.59179782,1251.9,1251.8,1.84420765]
[1672944901530,3.59179782,1251.9,1251.8,1.74520765]
[1672944901736,3.59179782,1251.9,1251.8,9.73369765]
[1672944902056,3.59179782,1251.9,1251.8,9.83269765]
[1672944902468,3.59179782,1251.9,1251.8,1.84420765]
[1672944902779,3.59179782,1251.9,1251.8,1.74520765]
[1672944902995,7.19752222,1251.9,1251.8,1.74520765]
[1672944904259,28.37573128,1251.9,1251.8,1.74520765]
[1672944904466,36.96308128,1251.9,1251.6,0.099]
[1672944904654,3.59621198,1251.7,1251.5,0.13943037]
[1672944904867,17.83251843,1251.7,1251.5,0.04043037]
[1672944905205,2.99707007,1251.6,1251.5,0.04043037]
[1672944908182,12.38907196,1251.7,1251.5,0.04043037]
[1672944908403,10.67407007,1251.7,1251.5,24.01166037]
[1672944908611,2.99707007,1251.7,1251.5,24.11066037]
[1672944908965,3.66257007,1251.8,1251.5,24.11066037]
[1672944909192,3.59657007,1251.8,1251.5,24.11066037]
[1672944909440,3.59657007,1251.8,1251.5,27.32484644]
[1672944909838,2.99707007,1251.7,1251.5,39.03614644]
[1672944911122,2.99707007,1251.7,1251.5,31.04573644]
[1672944911653,2.99707007,1251.7,1251.5,39.03614644]
[1672944914469,11.65118007,1251.8,1251.5,39.03614644]
[1672944914658,11.58518007,1251.8,1251.5,39.03614644]
[1672944914871,2.99707007,1251.7,1251.5,39.03614644]
[1672944915113,11.65118007,1251.8,1251.5,39.03614644]
[1672944915331,11.58518007,1251.8,1251.5,35.82196037]
[1672944915546,2.99707007,1251.7,1251.5,35.82196037]
[1672944916086,8.65411,1251.8,1251.5,35.82196037]
[1672944916087,11.65118007,1251.8,1251.5,35.82196037]
[1672944916235,11.58518007,1251.8,1251.5,35.82196037]
[1672944917956,19.57379007,1251.8,1251.5,27.83155037]
[1672944918129,23.66264928,1251.8,1251.5,27.83155037]
[1672944918499,2.99707007,1251.7,1251.5,27.83155037]